bitfinex-derivatives/quotes_BTCF0:USTF0_20250517
["timestamp","ask_amount","ask_price","bid_price","bid_amount"]
[1747498263418,6.59636101,103100.0,103090.0,0.2555421]
[1747498264931,6.59636101,103100.0,103090.0,0.2863421]
[1747498265638,6.49822869,103100.0,103090.0,0.2863421]
[1747498265931,6.28686546,103100.0,103090.0,0.2863421]
[1747498266829,6.28686546,103100.0,103090.0,0.05892242]
[1747498267031,6.28686546,103100.0,103090.0,0.25286452]
[1747498268335,6.38499778,103100.0,103090.0,0.25286452]
[1747498270729,6.38499778,103100.0,103090.0,0.28286452]
[1747498272737,6.38499778,103100.0,103090.0,0.25206452]
[1747498277345,6.38499778,103100.0,103090.0,0.21857935]
[1747498283146,6.74579778,103100.0,103090.0,0.21857935]
[1747498283344,5.48936546,103100.0,103090.0,0.31671167]
[1747498283545,5.57246546,103100.0,103090.0,0.45231167]
[1747498283846,5.5670233,103100.0,103090.0,0.45231167]
[1747498284543,5.3731,103100.0,103090.0,0.45231167]
[1747498284744,5.52246546,103100.0,103090.0,0.71497935]
[1747498284947,5.52246546,103100.0,103090.0,0.81311167]
[1747498286343,5.32854216,103100.0,103090.0,0.81311167]
[1747498286550,5.32854216,103100.0,103090.0,1.03311167]
[1747498287050,5.54026173,103100.0,103090.0,1.03311167]
[1747498287937,5.54026173,103100.0,103090.0,1.07021226]
[1747498288137,5.73418503,103100.0,103090.0,1.07021226]
[1747498289943,5.54026173,103100.0,103090.0,1.07021226]
[1747498290254,5.69141762,103100.0,103090.0,1.07021226]
[1747498290443,5.88534092,103100.0,103090.0,1.07021226]
[1747498290849,5.69141762,103100.0,103090.0,1.07021226]
[1747498291151,5.91684092,103100.0,103090.0,0.70941226]
[1747498291345,5.91684092,103100.0,103090.0,0.97207994]
[1747498291546,5.72291762,103100.0,103090.0,1.07021226]
[1747498291851,5.91684092,103100.0,103090.0,1.07021226]
[1747498294252,5.91684092,103100.0,103090.0,0.70941226]
[1747498294453,5.91684092,103100.0,103090.0,1.07021226]
[1747498294654,5.72291762,103100.0,103090.0,1.07021226]
[1747498296055,5.91684082,103100.0,103090.0,1.07021226]
[1747498296956,5.72291762,103100.0,103090.0,1.07021226]
[1747498297553,5.91684092,103100.0,103090.0,1.07021226]
[1747498297956,5.72291762,103100.0,103090.0,1.07021226]
[1747498298151,5.69141762,103100.0,103090.0,1.07021226]
[1747498298349,5.88534092,103100.0,103090.0,1.07021226]
[1747498298859,5.88534092,103100.0,103090.0,0.70941226]
[1747498299059,5.88534092,103100.0,103090.0,1.07021226]
[1747498299361,5.69141762,103100.0,103090.0,1.07021226]
[1747498299561,5.88534082,103100.0,103090.0,1.07021226]
[1747498301060,5.91594082,103100.0,103090.0,1.07021226]
[1747498302864,5.91594082,103100.0,103090.0,0.70941226]
[1747498303163,5.91594082,103100.0,103090.0,1.07021226]
[1747498304359,5.72201762,103100.0,103090.0,1.07021226]
[1747498304670,5.69141762,103100.0,103090.0,1.48765226]
[1747498305268,5.51141762,103100.0,103090.0,1.48765226]
[1747498308259,5.69141762,103100.0,103090.0,1.48765226]
[1747498309262,5.72211762,103100.0,103090.0,1.48765226]
[1747498309569,5.72211762,103100.0,103090.0,1.83805226]
[1747498314975,5.91604082,103100.0,103090.0,1.83801226]
[1747498315166,5.94884082,103100.0,103090.0,1.83801226]
[1747498315769,5.94884082,103100.0,103090.0,1.42061226]
[1747498315971,5.94884082,103100.0,103090.0,1.33037501]
[1747498316272,5.94884082,103100.0,103090.0,0.76957501]
[1747498317271,6.30964082,103100.0,103090.0,0.67144269]
[1747498317477,6.44777314,103100.0,103090.0,0.67144269]
[1747498317879,6.71777314,103100.0,103090.0,0.58144269]
[1747498318576,6.71777314,103100.0,103090.0,0.23104269]
[1747498319277,6.71777314,103100.0,103090.0,0.1939421]
[1747498320481,6.56661725,103100.0,103090.0,0.1939421]
[1747498324482,6.77529725,103100.0,103090.0,0.1939421]
[1747498326682,6.41449725,103100.0,103090.0,0.1939421]
[1747498326883,7.13609725,103100.0,103090.0,0.1939421]
[1747498329684,7.03796493,103100.0,103090.0,0.1939421]
[1747498329883,7.13609725,103100.0,103090.0,0.1939421]
[1747498330086,6.92741725,103100.0,103090.0,0.1939421]
[1747498330890,6.82928493,103100.0,103090.0,0.1939421]
[1747498334791,6.10768493,103100.0,103090.0,0.1939421]
[1747498334991,6.82928493,103100.0,103090.0,0.1939421]
[1747498336589,6.82928493,103100.0,103080.0,0.273043]
[1747498336590,0.193942,103090.0,103080.0,0.273043]
[1747498336795,0.881042,103090.0,103080.0,0.273043]
[1747498337197,1.061042,103090.0,103080.0,0.273043]
[1747498337989,1.063042,103090.0,103080.0,0.273043]
[1747498338700,1.066042,103090.0,103080.0,0.273043]
[1747498339398,1.21698453,103090.0,103080.0,0.273043]
[1747498339699,1.21698453,103090.0,103080.0,0.303343]
[1747498340198,1.21698453,103090.0,103080.0,0.40147532]
[1747498340601,1.22242669,103090.0,103080.0,0.40147532]
[1747498340791,1.22242669,103090.0,103080.0,0.43357532]
[1747498341894,1.22242669,103090.0,103080.0,0.303343]
[1747498344405,1.32055901,103090.0,103080.0,0.224557]
[1747498345905,1.53227858,103090.0,103080.0,0.224557]
[1747498346106,1.43414626,103090.0,103080.0,0.224557]
[1747498347807,1.43414626,103090.0,103080.0,0.255757]
[1747498348907,1.43414626,103090.0,103080.0,0.0306]
[1747498349412,1.43414626,103090.0,103080.0,0.2245608]
[1747498352406,1.43414626,103090.0,103080.0,0.2548608]
[1747498352599,1.28320373,103090.0,103080.0,0.2548608]
[1747498353108,0.92240373,103090.0,103080.0,0.2548608]
[1747498353306,1.64400373,103090.0,103080.0,0.2548608]
[1747498354609,1.74213605,103090.0,103080.0,0.2548608]
[1747498354796,1.74213605,103090.0,103080.0,0.2874608]
[1747498355000,1.74213605,103090.0,103080.0,0.2548608]
[1747498356008,1.64400373,103090.0,103080.0,0.2548608]
[1747498357911,1.64400373,103090.0,103080.0,0.0609]
[1747498358813,1.74213605,103090.0,103080.0,0.0303]
[1747498359114,0.1939609,103080.0,103070.0,0.54012064]
[1747498359314,0.7014609,103080.0,103070.0,0.47428832]
[1747498359722,0.79959322,103080.0,103070.0,0.10224092]
[1747498359911,1.41636554,103080.0,103070.0,0.03904092]
[1747498360219,0.1939797,103070.0,103060.0,0.14399928]
[1747498360418,1.28821202,103070.0,103060.0,0.11349928]
[1747498361115,1.46821202,103070.0,103060.0,0.11349928]
[1747498361317,1.46821202,103070.0,103060.0,0.11449928]
[1747498361812,1.46821202,103070.0,103060.0,0.27619778]
[1747498362617,1.46821202,103070.0,103060.0,0.27719778]
[1747498363219,1.46821202,103070.0,103060.0,0.27619778]
[1747498363422,1.46821202,103070.0,103060.0,0.08219928]
[1747498363423,1.46921202,103070.0,103060.0,0.08219928]
[1747498363609,1.47021202,103070.0,103060.0,0.05089928]
[1747498365421,1.67889202,103070.0,103060.0,0.05089928]
[1747498365718,1.69366688,103070.0,103060.0,0.05089928]
[1747498368115,1.69366688,103070.0,103060.0,0.00145534]
[1747498370521,2.05446688,103070.0,103060.0,0.00145534]
[1747498371022,2.05990904,103070.0,103060.0,0.00145534]
[1747498374423,1.33830904,103070.0,103060.0,0.00145534]
[1747498374622,2.05990904,103070.0,103060.0,0.00145534]
[1747498376827,0.1939984,103060.0,103050.0,0.0981]
[1747498377019,1.05853072,103060.0,103050.0,0.0981]
[1747498377219,1.23853072,103060.0,103050.0,0.2921173]
[1747498377925,1.45025029,103060.0,103050.0,0.2921173]
[1747498378122,1.45025029,103060.0,103050.0,0.2931173]
[1747498378924,1.45025029,103060.0,103050.0,0.2941173]
[1747498379819,1.45125029,103060.0,103050.0,0.2931173]
[1747498380020,1.45225029,103060.0,103050.0,0.2921173]
[1747498381726,1.35411797,103060.0,103050.0,0.2921173]
[1747498381930,1.45225029,103060.0,103050.0,0.2921173]
[1747498383436,1.45225029,103060.0,103050.0,0.0981]
[1747498383621,1.45225029,103060.0,103050.0,0.2921172]
[1747498385427,1.45769245,103060.0,103050.0,0.2921172]
[1747498386026,1.09689245,103060.0,103050.0,0.2921172]
[1747498386227,1.45769245,103060.0,103050.0,0.2921172]
[1747498386523,1.09689245,103060.0,103050.0,0.2921172]
[1747498386721,1.45769245,103060.0,103050.0,0.2921172]
[1747498387531,1.35956013,103060.0,103050.0,0.2921172]
[1747498387722,1.45769245,103060.0,103050.0,0.2921172]
[1747498389435,1.66629245,103060.0,103050.0,0.2921172]
[1747498390032,1.66629245,103060.0,103050.0,0.0981]
[1747498390218,1.66629245,103060.0,103050.0,0.2921174]
[1747498390827,1.45769245,103060.0,103050.0,0.2921174]
[1747498391129,1.87489245,103060.0,103050.0,0.2921174]
[1747498392126,1.87489245,103060.0,103050.0,0.0981]
[1747498392327,1.87489245,103060.0,103050.0,0.0651]
[1747498392927,1.77676013,103060.0,103050.0,0.2591173]
[1747498393131,1.87489245,103060.0,103050.0,0.2591173]
[1747498394434,1.87489245,103060.0,103050.0,0.2923173]
[1747498394635,1.87489245,103060.0,103050.0,0.0983]
[1747498395335,1.86945029,103060.0,103050.0,0.0983]
[1747498396034,1.50865029,103060.0,103050.0,0.0983]
[1747498396229,1.66085029,103060.0,103050.0,0.0983]
[1747498396430,1.87489245,103060.0,103050.0,0.0983]
[1747498398729,1.77676013,103060.0,103050.0,0.0983]
[1747498398935,1.87489245,103060.0,103050.0,0.0983]
[1747498406244,1.77676013,103060.0,103050.0,0.0983]
[1747498406444,1.87489245,103060.0,103050.0,0.0983]
[1747498407051,2.23569245,103060.0,103050.0,0.0983]
[1747498407850,2.23569245,103060.0,103050.0,0.0651]
[1747498409349,2.23569245,103060.0,103050.0,0.00674957]
[1747498410454,0.1940171,103050.0,103040.0,0.2273227]
[1747498410645,0.7171766,103050.0,103040.0,0.22694295]
[1747498410950,0.6499766,103050.0,103040.0,0.22694295]
[1747498411152,0.8299766,103050.0,103040.0,0.22694295]
[1747498411649,0.8299766,103050.0,103040.0,0.22894295]
[1747498412145,0.6499766,103050.0,103040.0,0.22894295]
[1747498412551,0.6499766,103050.0,103040.0,0.29424295]
[1747498413750,0.6499766,103050.0,103040.0,0.39237527]
[1747498414050,0.86192789,103050.0,103040.0,0.39237527]
[1747498415752,0.86737005,103050.0,103040.0,0.39237527]
[1747498416553,0.86737005,103050.0,103040.0,0.29424295]
[1747498418652,0.86192789,103050.0,103040.0,0.29424295]
[1747498418953,0.50112789,103050.0,103040.0,0.29424295]
[1747498419153,0.90192789,103050.0,103040.0,0.29424295]
[1747498419453,0.54112789,103050.0,103040.0,0.29424295]
[1747498419754,0.90737005,103050.0,103040.0,0.29424295]
[1747498420455,0.54657005,103050.0,103040.0,0.29424295]
[1747498420752,0.90737005,103050.0,103040.0,0.29424295]
[1747498422156,1.08737005,103050.0,103040.0,0.29424295]
[1747498422956,1.08737005,103050.0,103040.0,0.39237527]
[1747498424052,1.08737005,103050.0,103040.0,0.29424295]
[1747498429169,0.72657005,103050.0,103040.0,0.29424295]
[1747498429464,1.08737005,103050.0,103040.0,0.29424295]
[1747498429664,1.08737005,103050.0,103040.0,0.39237527]
[1747498432159,0.72657005,103050.0,103040.0,0.39237527]
[1747498432364,1.08737005,103050.0,103040.0,0.39237527]
[1747498432968,1.08192789,103050.0,103040.0,0.39237527]
[1747498433158,0.90192789,103050.0,103040.0,0.39237527]
[1747498435664,0.54112789,103050.0,103040.0,0.39237527]
[1747498435961,0.90192789,103050.0,103040.0,0.39237527]
[1747498437464,0.90192789,103050.0,103040.0,0.29424295]
[1747498437655,0.90192789,103050.0,103040.0,0.19564295]
[1747498438065,0.90192789,103050.0,103040.0,0.002]
[1747498438365,0.90192789,103050.0,103040.0,0.196036]
[1747498438861,1.00006021,103050.0,103040.0,0.002]
[1747498439065,1.32006021,103050.0,103040.0,0.002]
[1747498440269,1.50006021,103050.0,103040.0,0.00022963]
[1747498440463,0.1940359,103040.0,103030.0,0.05138503]
[1747498440667,1.52422797,103040.0,103030.0,0.05138503]
[1747498441681,1.52422797,103040.0,103030.0,0.00194109]
[1747498441967,0.1940547,103030.0,103020.0,0.04944394]
[1747498442167,0.88936677,103030.0,103020.0,0.04944394]
[1747498443263,0.88936677,103030.0,103020.0,0.05344394]
[1747498443659,0.88974652,103030.0,103020.0,0.05344394]
[1747498444968,1.10169781,103030.0,103020.0,0.05344394]
[1747498445871,1.27169781,103030.0,103020.0,0.05344394]
[1747498446572,1.27169781,103030.0,103020.0,0.004]
[1747498453278,1.27169781,103030.0,103020.0,0.0351]
[1747498453779,1.17356549,103030.0,103020.0,0.0351]
[1747498453973,1.27169781,103030.0,103020.0,0.0651]
[1747498454375,1.27169781,103030.0,103020.0,0.004]
[1747498454876,1.17356549,103030.0,103020.0,0.004]
[1747498455073,1.27169781,103030.0,103020.0,0.0341]
[1747498455583,1.17356549,103030.0,103020.0,0.0341]
[1747498455783,1.48009781,103030.0,103020.0,0.0641]
[1747498456078,1.27169781,103030.0,103020.0,0.2581736]
[1747498456478,1.48009781,103030.0,103020.0,0.0641]
[1747498456878,1.68849781,103030.0,103020.0,0.0641]
[1747498457073,1.68849781,103030.0,103020.0,0.2581736]
[1747498457272,1.68849781,103030.0,103020.0,0.0641]
[1747498458787,1.68849781,103030.0,103020.0,0.2581736]
[1747498459278,1.31626549,103030.0,103020.0,0.0641]
[1747498459477,1.42275781,103030.0,103020.0,0.2900736]
[1747498459771,1.48435781,103030.0,103020.0,0.2900736]
[1747498460388,1.06759781,103030.0,103020.0,0.2900736]
[1747498460580,1.48435781,103030.0,103020.0,0.2900736]
[1747498461185,1.48435781,103030.0,103020.0,0.4700736]
[1747498462279,1.48435781,103030.0,103020.0,0.2900736]
[1747498462982,1.17786549,103030.0,103020.0,0.2900736]
[1747498463382,0.96946549,103030.0,103020.0,0.2900736]
[1747498464376,0.93806549,103030.0,103020.0,0.2900736]
[1747498465089,0.93806549,103030.0,103020.0,0.4700736]
[1747498466003,0.90786549,103030.0,103020.0,0.4700736]
[1747498466590,0.90786549,103030.0,103020.0,0.56820592]
[1747498466790,0.90786549,103030.0,103020.0,0.4700736]
[1747498466791,0.54706549,103030.0,103020.0,0.4700736]
[1747498467381,0.90786549,103030.0,103020.0,0.4700736]
[1747498467582,0.54706549,103030.0,103020.0,0.4700736]
[1747498467783,0.90786549,103030.0,103020.0,0.4700736]
[1747498468290,0.54706549,103030.0,103020.0,0.4700736]
[1747498468490,0.90786549,103030.0,103020.0,0.4700736]
[1747498468979,0.93806549,103030.0,103020.0,0.4700736]
[1747498469594,0.97076549,103030.0,103020.0,0.4700736]
[1747498469892,1.06889781,103030.0,103020.0,0.4700736]
[1747498470195,1.06889781,103030.0,103020.0,0.2900736]
[1747498470893,1.22014374,103030.0,103020.0,0.2900736]
[1747498471491,1.44014374,103030.0,103020.0,0.0641]
[1747498471689,1.64854374,103030.0,103020.0,0.0641]
[1747498471991,1.64854374,103030.0,103020.0,0.0341]
[1747498472393,1.64854374,103030.0,103020.0,0.004]
[1747498479901,2.00934374,103030.0,103020.0,0.004]
[1747498480398,1.28774374,103030.0,103020.0,0.004]
[1747498480600,1.80094374,103030.0,103020.0,0.154]
[1747498480800,1.39281142,103030.0,103020.0,0.3480735]
[1747498481014,1.39281142,103030.0,103020.0,0.4436735]
[1747498481802,1.49094374,103030.0,103020.0,0.4436735]
[1747498482608,1.39281142,103030.0,103020.0,0.4436735]
[1747498482897,1.39281142,103030.0,103020.0,0.54180582]
[1747498483097,1.39281142,103030.0,103020.0,0.72180582]
[1747498483404,1.39281142,103030.0,103020.0,0.75892648]
[1747498484102,1.67922374,103030.0,103020.0,0.37112066]
[1747498484301,2.01922374,103030.0,103020.0,0.22112066]
[1747498485197,2.01922374,103030.0,103020.0,0.04112066]
[1747498486000,1.65602652,103030.0,103020.0,0.04112066]
[1747498487708,1.65602652,103030.0,103020.0,0.004]
[1747498487909,1.3778942,103030.0,103020.0,0.10213232]
[1747498488205,1.1696142,103030.0,103020.0,0.13363232]
[1747498489010,1.1696142,103030.0,103020.0,0.004]
[1747498489220,1.1696142,103030.0,103020.0,0.29620592]
[1747498489398,1.1696142,103030.0,103020.0,0.39240592]
[1747498490204,1.1696142,103030.0,103020.0,0.57240592]
[1747498490609,1.1696142,103030.0,103020.0,0.57784808]
[1747498492508,1.0096142,103030.0,103020.0,0.6859804]
[1747498492807,0.9769142,103030.0,103020.0,0.6859804]
[1747498493111,0.9467142,103030.0,103020.0,0.6859804]
[1747498493507,0.2251142,103030.0,103020.0,0.6859804]
[1747498494309,0.37632792,103030.0,103020.0,0.6859804]
[1747498494505,0.37632792,103030.0,103020.0,0.9259804]
[1747498494704,0.37632792,103030.0,103020.0,0.92053824]
[1747498495612,0.37632792,103030.0,103020.0,1.27093824]
[1747498496409,0.37632792,103030.0,103020.0,1.3080589]
[1747498496918,0.37632792,103030.0,103020.0,1.6688589]
[1747498500216,0.37632792,103030.0,103020.0,1.3184589]
[1747498500618,0.37729842,103030.0,103020.0,1.3184589]
[1747498501912,0.15294372,103030.0,103020.0,1.3184589]
[1747498502916,0.34699852,103030.0,103020.0,1.3184589]
[1747498504534,0.37699852,103030.0,103020.0,1.3184589]
[1747498505937,0.37699852,103030.0,103020.0,1.36790284]
[1747498508637,0.43999852,103030.0,103020.0,1.11717052]
[1747498508827,0.43999852,103030.0,103020.0,0.66897052]
[1747498509231,0.43999852,103030.0,103020.0,0.48897052]
[1747498509725,0.43999852,103030.0,103020.0,0.58710284]
[1747498510240,0.43999852,103030.0,103020.0,0.76710284]
[1747498510628,0.43999852,103030.0,103020.0,0.7176589]
[1747498511238,0.43999852,103030.0,103020.0,0.5376589]
[1747498512041,0.43999852,103030.0,103020.0,0.40712658]
[1747498512245,0.43999852,103030.0,103020.0,0.58712658]
[1747498512442,0.43999852,103030.0,103020.0,0.57712658]
[1747498513139,0.43999852,103030.0,103020.0,0.39712658]
[1747498513547,0.43999852,103030.0,103020.0,0.29899426]
[1747498513750,0.43999852,103030.0,103020.0,0.39712658]
[1747498517042,0.43999852,103030.0,103020.0,0.4952589]
[1747498517647,0.43999852,103030.0,103020.0,0.39712658]
[1747498519548,0.43999852,103030.0,103020.0,0.4952589]
[1747498519847,0.43999852,103030.0,103020.0,0.39712658]
[1747498520149,0.43999852,103030.0,103020.0,0.4952589]
[1747498521149,0.43999852,103030.0,103020.0,0.8571589]
[1747498522148,0.43999852,103030.0,103020.0,0.86260106]
[1747498524149,0.43999852,103030.0,103020.0,0.8571589]
[1747498524642,0.65169772,103030.0,103020.0,0.8571589]
[1747498524844,0.65169772,103030.0,103020.0,0.8252589]
[1747498525343,0.65169772,103030.0,103020.0,0.6452589]
[1747498526156,0.65169772,103030.0,103020.0,0.8252589]
[1747498528554,0.39464292,103030.0,103020.0,1.53469122]
[1747498528755,0.39464292,103030.0,103020.0,1.4365589]
[1747498535251,0.36464292,103030.0,103020.0,1.63175522]
[1747498535461,0.0323,103040.0,103030.0,0.1940547]
[1747498535656,0.0323,103040.0,103030.0,1.26935934]
[1747498536255,0.0323,103040.0,103030.0,1.6138947]
[1747498536458,0.0323,103040.0,103030.0,1.71202702]
[1747498538161,0.0323,103040.0,103030.0,1.71402702]
[1747498538350,0.0323,103040.0,103030.0,1.29778702]
[1747498538860,0.0323,103040.0,103030.0,1.29978702]
[1747498540060,0.0323,103040.0,103030.0,1.39791934]
[1747498541959,0.0323,103040.0,103030.0,1.44736328]
[1747498542263,0.0323,103040.0,103030.0,1.34923096]
[1747498544568,0.15311471,103040.0,103030.0,1.34923096]
[1747498545572,0.15311471,103040.0,103030.0,1.3862792]
[1747498546968,0.15311471,103040.0,103030.0,1.0254792]
[1747498547270,0.15311471,103040.0,103030.0,1.3862792]
[1747498547474,0.18591471,103040.0,103030.0,1.3862792]
[1747498548769,0.18591471,103040.0,103030.0,1.33683526]
[1747498549968,0.18591471,103040.0,103030.0,0.97603526]
[1747498550169,0.18591471,103040.0,103030.0,1.33683526]
[1747498550671,0.18591471,103040.0,103030.0,1.34227742]
[1747498551776,0.21731471,103040.0,103030.0,1.34227742]
[1747498553674,0.21731471,103040.0,103030.0,1.39172136]
[1747498554975,0.21731471,103040.0,103030.0,1.03092136]
[1747498555179,0.21731471,103040.0,103030.0,1.39172136]
[1747498556176,0.21731471,103040.0,103030.0,1.52172136]
[1747498558278,0.21731471,103040.0,103030.0,1.48467312]
[1747498559681,0.3683331,103040.0,103030.0,1.48467312]
[1747498559979,0.3041331,103040.0,103030.0,1.99880544]
[1747498561165,0.3041331,103040.0,103030.0,2.04300236]
[1747498562778,0.3041331,103040.0,103030.0,1.68220236]
[1747498562977,0.3041331,103040.0,103030.0,2.40380236]
[1747498563277,0.18331839,103040.0,103030.0,2.40380236]
[1747498563474,0.18331839,103040.0,103030.0,2.4873999]
[1747498564475,0.18331839,103040.0,103030.0,2.38926758]
[1747498564679,0.18331839,103040.0,103030.0,2.73966758]
[1747498564879,0.18331839,103040.0,103030.0,2.73422542]
[1747498565878,0.18331839,103040.0,103030.0,2.73962758]
[1747498566080,0.43875449,103040.0,103030.0,1.47253526]
[1747498566282,0.43875449,103040.0,103030.0,1.50926758]
[1747498566781,0.24471839,103040.0,103030.0,1.87006758]
[1747498567087,0.43875449,103040.0,103030.0,1.32382542]
[1747498567281,0.24471839,103040.0,103030.0,1.68462542]
[1747498567471,0.24471839,103040.0,103030.0,1.6404285]
[1747498569182,0.3655331,103040.0,103030.0,1.6404285]
[1747498570483,0.3655331,103040.0,103030.0,1.6719285]
[1747498571483,0.3655331,103040.0,103030.0,1.7034285]
[1747498571885,0.3655331,103040.0,103030.0,1.70887066]
[1747498572388,0.3655331,103040.0,103030.0,1.61073834]
[1747498572588,0.3655331,103040.0,103030.0,1.70887066]
[1747498573691,0.3655331,103040.0,103030.0,1.66235877]
[1747498573880,0.3655331,103040.0,103030.0,1.69425877]
[1747498575090,0.3655331,103040.0,103030.0,1.68881661]
[1747498575990,0.3655331,103040.0,103030.0,1.69425877]
[1747498576691,0.21451471,103040.0,103030.0,1.69425877]
[1747498577395,0.21451471,103040.0,103030.0,1.66235877]
[1747498577590,0.21451471,103040.0,103030.0,1.62527466]
[1747498577993,0.21451471,103040.0,103030.0,1.6198325]
[1747498580383,0.21451471,103040.0,103030.0,1.52170018]
[1747498580589,0.40855081,103040.0,103030.0,1.5568325]
[1747498580792,0.21451471,103040.0,103030.0,1.7647525]
[1747498580994,0.40855081,103040.0,103030.0,1.5568325]
[1747498582705,0.40855081,103040.0,103030.0,1.2064325]
[1747498583304,0.40855081,103040.0,103030.0,1.2382325]
[1747498583810,0.21451471,103040.0,103030.0,1.2382325]
[1747498584307,0.40855071,103040.0,103030.0,1.2382325]
[1747498586105,0.40855071,103040.0,103030.0,0.8774325]
[1747498586310,0.40855071,103040.0,103030.0,1.2382325]
[1747498586809,0.21451471,103040.0,103030.0,1.2382325]
[1747498587105,0.21451471,103040.0,103030.0,1.24367466]
[1747498587307,0.40855061,103040.0,103030.0,1.24367466]
[1747498588205,0.40855061,103040.0,103030.0,1.2382325]
[1747498588407,0.40855061,103040.0,103030.0,1.2710325]
[1747498589213,0.40855061,103040.0,103030.0,1.27647466]
[1747498590613,0.40855061,103040.0,103030.0,0.91567466]
[1747498590808,0.40855061,103040.0,103030.0,1.27647466]
[1747498591307,0.40855061,103040.0,103030.0,1.48439466]
[1747498592801,0.40855061,103040.0,103030.0,1.38626234]
[1747498593005,0.40855061,103040.0,103030.0,1.11374234]
[1747498593205,0.40855061,103040.0,103030.0,1.2064325]
[1747498593407,0.40855061,103040.0,103030.0,1.0464325]
[1747498594519,0.40855061,103040.0,103030.0,1.0794325]
[1747498595016,0.40855061,103040.0,103030.0,0.94830018]
[1747498595323,0.559569,103040.0,103030.0,1.0464325]
[1747498596322,0.559569,103040.0,103030.0,1.05187466]
[1747498598616,0.43875429,103040.0,103030.0,1.05187466]
[1747498599128,0.43875429,103040.0,103030.0,0.95374234]
[1747498599423,1.14768661,103040.0,103030.0,0.18344548]
[1747498599624,0.1940548,103030.0,103020.0,0.0618962]
[1747498599928,1.07718712,103030.0,103020.0,0.0618962]
[1747498600127,1.35425112,103030.0,103020.0,0.0618962]
[1747498600633,1.35425112,103030.0,103020.0,0.0648962]
[1747498600926,1.35425112,103030.0,103020.0,0.0688962]
[1747498601316,1.60425112,103030.0,103020.0,0.0688962]
[1747498602228,1.60425112,103030.0,103020.0,0.007]
[1747498602820,1.60425112,103030.0,103010.0,0.0618962]
[1747498602821,0.1940736,103020.0,103010.0,0.0618962]
[1747498603025,1.47280592,103020.0,103010.0,0.0618962]
[1747498603227,1.65280592,103020.0,103010.0,0.0618962]
[1747498604334,1.65280592,103020.0,103010.0,0.0638962]
[1747498605228,1.65280592,103020.0,103010.0,0.0658962]
[1747498607235,1.99987792,103020.0,103010.0,0.004]
[1747498607435,1.99987792,103020.0,103010.0,0.00944216]
[1747498608436,1.99987792,103020.0,103010.0,0.004]
[1747498608936,0.1940925,103010.0,103000.0,0.02055]
[1747498609138,0.99472482,103010.0,103000.0,0.02055]
[1747498609633,0.8965925,103010.0,103000.0,0.02055]
[1747498610336,1.0765925,103010.0,103000.0,0.02355]
[1747498611135,0.8965925,103010.0,103000.0,0.02355]
[1747498611335,0.8965925,103010.0,103000.0,0.02655]
[1747498611734,0.1941113,103000.0,102990.0,0.00194184]
[1747498611939,0.9169113,103000.0,102990.0,0.19607194]
[1747498612537,0.9169113,103000.0,102990.0,0.00194184]
[1747498612940,0.9169113,103000.0,102990.0,0.00994184]
[1747498613135,1.03713252,103000.0,102990.0,0.00994184]
[1747498614238,1.45305252,103000.0,102990.0,0.00994184]
[1747498614438,1.45305252,103000.0,102990.0,0.20407194]
[1747498614634,1.27305252,103000.0,102990.0,0.23497194]
[1747498614940,1.27305252,103000.0,102990.0,0.04084184]
[1747498615343,1.27305252,103000.0,102990.0,0.10807416]
[1747498615539,1.49305252,103000.0,102990.0,0.10807416]
[1747498615947,1.49305252,103000.0,102990.0,0.00994184]
[1747498616842,1.30305252,103000.0,102990.0,0.00994184]
[1747498617041,1.30305252,103000.0,102990.0,0.04084184]
[1747498617445,1.30305252,103000.0,102990.0,0.23497194]
[1747498617645,1.33455252,103000.0,102990.0,0.04084184]
[1747498617949,1.50455252,103000.0,102990.0,0.13897416]
[1747498618344,1.50455252,103000.0,102990.0,0.04084184]
[1747498618552,1.50455252,103000.0,102980.0,0.25998939]
[1747498618553,0.1941301,102990.0,102980.0,0.0644]
[1747498618753,0.8917301,102990.0,102980.0,0.0646]
[1747498618944,0.98986242,102990.0,102980.0,0.0322]
[1747498619450,0.8917301,102990.0,102980.0,0.0322]
[1747498620441,0.194149,102980.0,102970.0,0.06497111]
[1747498620644,0.978249,102980.0,102970.0,0.29013901]
[1747498620845,1.186209,102980.0,102970.0,0.38827133]
[1747498621047,1.026209,102980.0,102970.0,0.38827133]
[1747498621552,1.026209,102980.0,102970.0,0.38927133]
[1747498622049,0.856209,102980.0,102970.0,0.47927133]
[1747498622254,0.857209,102980.0,102970.0,0.28510343]
[1747498622457,0.857209,102980.0,102970.0,0.38927133]
[1747498622649,0.947209,102980.0,102970.0,0.38927133]
[1747498622951,1.157209,102980.0,102970.0,0.29113891]
[1747498623544,1.157209,102980.0,102970.0,0.25903891]
[1747498624645,1.157209,102980.0,102970.0,0.26448107]
[1747498624953,0.967209,102980.0,102970.0,0.36261339]
[1747498625345,0.759249,102980.0,102970.0,0.36261339]
[1747498626242,0.0311,102980.0,102970.0,1.34154571]
[1747498626447,0.1951489,102980.0,102970.0,1.34154571]
[1747498626660,0.001,102980.0,102970.0,1.24341339]
[1747498627255,0.001,102980.0,102970.0,1.34154571]
[1747498627754,0.001,102980.0,102970.0,1.55078571]
[1747498629258,0.001,102980.0,102970.0,1.50418755]
[1747498629658,0.1951489,102980.0,102970.0,1.50418755]
[1747498630165,0.1951489,102980.0,102970.0,1.3918465]
[1747498630347,0.1951489,102980.0,102970.0,1.54151298]
[1747498630654,0.1951489,102980.0,102970.0,1.89191298]
[1747498631047,0.001,102980.0,102970.0,1.89191298]
[1747498631247,0.1951489,102980.0,102970.0,1.7422465]
[1747498631448,0.1951489,102980.0,102970.0,1.89191298]
[1747498631747,0.16419091,102980.0,102970.0,1.89191298]
[1747498632757,0.49316372,102990.0,102980.0,0.1941489]
[1747498632960,0.49316372,102990.0,102980.0,0.99341538]
[1747498633257,0.49316372,102990.0,102980.0,1.17341538]
[1747498633758,0.49416372,102990.0,102980.0,1.17341538]
[1747498634258,0.49516372,102990.0,102980.0,1.17341538]
[1747498636763,0.44662862,102990.0,102980.0,1.17341538]
[1747498636960,0.15542122,102990.0,102980.0,1.17341538]
[1747498637270,0.12222122,102990.0,102980.0,1.53316186]
[1747498637468,0.12222122,102990.0,102980.0,1.38349538]
[1747498638358,0.12222122,102990.0,102980.0,1.73389538]
[1747498638758,0.12222122,102990.0,102980.0,1.88356186]
[1747498638959,0.12222122,102990.0,102980.0,1.92062672]
[1747498639271,0.12222122,102990.0,102980.0,2.32523279]
[1747498639562,0.15301839,103000.0,102990.0,0.1941301]
[1747498639769,0.15301839,103000.0,102990.0,1.47828306]
[1747498640161,0.15301839,103000.0,102990.0,1.65828306]
[1747498640364,0.002,103000.0,102990.0,1.65828306]
[1747498640764,0.002,103000.0,102990.0,2.00868306]
[1747498640958,0.004,103000.0,102990.0,2.00868306]
[1747498642160,0.004,103000.0,102990.0,1.7093501]
[1747498642359,0.004,103000.0,102990.0,2.00868306]
[1747498643269,0.004,103000.0,102990.0,1.7093501]
[1747498643772,0.0369,103000.0,102990.0,2.00868306]